{"text_format":"3","workbook":"xlsx","n_sheets":12,"sheets":["Turbo Motors Outline","Hours","Todo","Calculator","Alt","Recipes","Plastic vs HOR","PlutNotes","Mall Layout","HMF Layout","Turbo Comp","HOR Fuel"],"not_rendered":{"macros":1,"defined_names":6,"comments":1},"read":"whole","date_system":"1900"}

{"sheet":"Turbo Motors Outline","index":0,"n_rows":50,"n_cols":23,"rows_kept":50,"hidden":true,"merged":[[1,1,1,3],[1,16,1,18],[1,20,1,22],[10,1,10,3],[10,5,10,7],[10,9,10,11],[10,13,10,15],[17,13,17,15],[23,1,23,3],[23,5,23,7],[23,9,23,11],[30,1,30,3],[31,9,31,11],[31,13,31,15],[36,1,36,3],[38,9,38,11],[44,9,44,11],[44,13,44,15]]}
[]
[null,"Turbo Riguor Motor",{"$nulls":18},"Stator"]
[null,"Category","Item","PPM",{"$nulls":12},"Category","Item","PPM",null,"Category","Item","PPM"]
[null,"Output","Turbo Riguor Motor",2.8,{"$nulls":12},"Output",{"$nulls":3},"Output","Stator",{"v":5,"d":"5.0"}]
[null,"Input 1","Motor",6.563,{"$nulls":12},"Input 1",{"$nulls":3},"Input 1","Steel Pipe",15]
[null,"Input 2","Radio Control Unit",4.688,{"$nulls":12},"Input 2",{"$nulls":3},"Input 2","Wire",40]
[null,"Input 3","A.I. Limiter",8.438,{"$nulls":12},"Input 3"]
[null,"Input 4","Stator",6.563,{"$nulls":12},"Input 4"]
[]
[]
[null,"Riguor Motor",{"$nulls":3},"Copper Rotor",{"$nulls":3},"Stator",{"$nulls":3},"Insulated Crystal Oscillator"]
[null,"Category","Item","PPM",null,"Category","Item","PPM",null,"Category","Item","PPM",null,"Category","Item","PPM"]
[null,"Output","Motor",7.5,null,"Output","Rotor",11.2,null,"Output","Stator",{"v":5,"d":"5.0"},null,"Output","Crystal Oscillator",1.9]
[null,"Input 1","Rotor",3.75,null,"Input 1","Copper Sheet",22.5,null,"Input 1","Steel Pipe",15,null,"Input 1","Quartz Crystal",18.75]
[null,"Input 2","Stator",3.75,null,"Input 2","Screw",195,null,"Input 2","Wire",40,null,"Input 2","Rubber",13.125]
[null,"Input 3","Crystal Oscillator",1.25,{"$nulls":9},"Input 3","A.I. Limiter",1.875]
[]
[{"$nulls":13},"A.I. Limiter"]
[{"$nulls":13},"Category","Item","PPM"]
[{"$nulls":13},"Output","A.I. Limiter",{"v":5,"d":"5.0"}]
[{"$nulls":13},"Input 1","Copper Sheet",25]
[{"$nulls":13},"Input 2","Quickwire",20]
[]
[null,"Radio Control System",{"$nulls":3},"Heat Exchanger",{"$nulls":3},"Supercomputer"]
[null,"Category","Item","PPM",null,"Category","Item","PPM",null,"Category","Item","PPM"]
[null,"Output","Radio Control Unit",3.8,null,"Output","Heat Sink",13.1,null,"Output","Supercomputer",1.9]
[null,"Input 1","Heat Sink",12.5,null,"Input 1","Alclad Aluminum Sheet",37.5,null,"Input 1","Computer",3.75]
[null,"Input 2","Supercomputer",1.25,null,"Input 2","Copper Sheet",56.25,null,"Input 2","A.I. Limiter",3.75]
[null,"Input 3","Quartz Crystal",37.5,{"$nulls":5},"Input 3","High-Speed Connector",5.625]
[{"$nulls":9},"Input 4","Plastic",52.5]
[null,"A.I. Limiter"]
[null,"Category","Item","PPM",{"$nulls":5},"Caterium Computer",{"$nulls":3},"Silicone Circuit Board"]
[null,"Output","A.I. Limiter",{"v":5,"d":"5.0"},{"$nulls":5},"Category","Item","PPM",null,"Category","Item","PPM"]
[null,"Input 1","Copper Sheet",25,{"$nulls":5},"Output","Computer",3.8,null,"Output","Circuit Board",12.5]
[null,"Input 2","Quickwire",20,{"$nulls":5},"Input 1","Circuit Board",26.25,null,"Input 1","Copper Sheet",27.5]
[{"$nulls":9},"Input 2","Quickwire",105,null,"Input 2","Silica",27.5]
[null,"Stator",{"$nulls":7},"Input 3","Rubber",45]
[null,"Category","Item","PPM"]
[null,"Output","Stator",{"v":5,"d":"5.0"},{"$nulls":5},"A.I. Limiter"]
[null,"Input 1","Steel Pipe",15,{"$nulls":5},"Category","Item","PPM"]
[null,"Input 2","Wire",40,{"$nulls":5},"Output","A.I. Limiter",{"v":5,"d":"5.0"}]
[{"$nulls":9},"Input 1","Copper Sheet",25]
[{"$nulls":9},"Input 2","Quickwire",20]
[]
[{"$nulls":9},"High-Speed Connector",{"$nulls":3},"Silicone Circuit Board"]
[{"$nulls":9},"Category","Item","PPM",null,"Category","Item","PPM"]
[{"$nulls":9},"Output","High-Speed Connector",3.8,null,"Output","Circuit Board",12.5]
[{"$nulls":9},"Input 1","Quickwire",210,null,"Input 1","Copper Sheet",27.5]
[{"$nulls":9},"Input 2","Cable",37.5,null,"Input 2","Silica",27.5]
[{"$nulls":9},"Input 3","Circuit Board",3.75]

{"sheet":"Hours","index":1,"n_rows":5,"n_cols":3,"rows_kept":5}
["Game","Days","Hours"]
["Satisfactory Experimental",{"$f":"8+(5/24)","v":{"v":8.208333333333334,"d":"8.208"}},{"$f":"B2*24","v":197}]
["Satisfactory Early Access",{"$f":"19+(6.5/24)","v":{"v":19.270833333333332,"d":"19.271"}},{"$f":"B3*24","v":462.5}]
["Steam",{"$f":"C4/24","v":{"v":8.966666666666667,"d":"8.967"}},215.2]
[null,null,{"$f":"SUM(C2:C4)","v":874.7}]

{"sheet":"Todo","index":2,"n_rows":1,"n_cols":3,"rows_kept":1}
["Priority","Description","Notes"]

{"sheet":"Calculator","index":3,"n_rows":42,"n_cols":13,"rows_kept":42,"merged":[[4,8,5,8],[4,9,5,9],[6,8,7,8],[6,9,7,9],[8,8,9,8],[8,9,9,9]]}
["Required Item","Recipe Name","PPM Req'd","Machine","Count","Power",{"$nulls":5},"Queued Item","PPM Req'd"]
["Assembly Director System","Assembly Director System",{"v":3,"d":"3.0"},"Assembler",{"v":4,"d":"4.00"},{"v":60,"d":"60.0"}]
["Adaptive Control Unit","Adaptive Control Unit",{"v":6,"d":"6.0"},"Manufacturer",{"v":6,"d":"6.00"},{"v":330,"d":"330.0"}]
["Supercomputer","Supercomputer",{"v":3,"d":"3.0"},"Manufacturer",{"v":1.6,"d":"1.60"},{"v":88,"d":"88.0"},null,null,"Desired Item","Desired PPM"]
["Automated Wiring","Automated Wiring",{"v":45,"d":"45.0"},"Assembler",{"v":18,"d":"18.00"},{"v":270,"d":"270.0"},null,null,"Assembly Director System",{"v":3,"d":"3.000"}]
["Circuit Board","Electrode Circuit Board",{"v":71,"d":"71.0"},"Assembler",{"v":14.2,"d":"14.20"},{"v":213,"d":"213.0"}]
["Heavy Modular Frame","Heavy Encased Frame",{"v":6,"d":"6.0"},"Manufacturer",{"v":2.1333333333333333,"d":"2.13"},{"v":117.33333333333333,"d":"117.3"}]
["Computer","Crystal Computer",{"v":12,"d":"12.0"},"Assembler",{"v":4.266666666666667,"d":"4.27"},{"v":64,"d":"64.0"}]
["Stator","Stator",{"v":45,"d":"45.0"},"Assembler",{"v":9,"d":"9.00"},{"v":135,"d":"135.0"}]
["Cable","Cable",{"v":1068.0298614501953,"d":"1,068.0"},"Constructor",{"v":35.60099538167318,"d":"35.60"},{"v":142.40398152669272,"d":"142.4"}]
["Steel Pipe","Steel Pipe",{"v":347,"d":"347.0"},"Constructor",17.35,69.4]
["Wire","Iron Wire",{"v":2856.0952758789062,"d":"2,856.1"},"Constructor",{"v":126.93756781684027,"d":"126.94"},{"v":507.7502712673611,"d":"507.8"}]
["Steel Ingot","Solid Steel Ingot",520.5,"Foundry",{"v":8.675,"d":"8.68"},138.8]
["Iron Ingot","Pure Iron Ingot",{"v":2299.7462615966797,"d":"2,299.7"},"Refinery",{"v":35.38071171687199,"d":"35.38"},{"v":1061.4213515061597,"d":"1,061.4"}]
["Coal",null,{"v":347,"d":"347.0"}]
["Iron Ore",null,{"v":1286.4499168395996,"d":"1,286.4"}]
["Water","Water",{"v":891.9273853302002,"d":"891.9"},"Water Extractor",{"v":7.432728211085002,"d":"7.43"},{"v":148.65456422170004,"d":"148.7"}]
["AI Limiter","AI Limiter",{"v":6,"d":"6.0"},"Assembler",{"v":1.2,"d":"1.20"},{"v":18,"d":"18.0"}]
["High-Speed Connector","Silicone High-Speed Connector",{"v":9,"d":"9.0"},"Manufacturer",{"v":3,"d":"3.00"},{"v":165,"d":"165.0"}]
["Plastic",null,{"v":84,"d":"84.0"}]
["Crystal Oscillator","Crystal Oscillator",{"v":12.0021333694458,"d":"12.0"},"Manufacturer",{"v":12.0021333694458,"d":"12.00"},{"v":660.117335319519,"d":"660.1"}]
["Copper Sheet","Steamed Copper Sheet",{"v":30,"d":"30.0"},"Refinery",{"v":1.3333333333333333,"d":"1.33"},{"v":40,"d":"40.0"}]
["Quickwire","Fused Quickwire",{"v":390,"d":"390.0"},"Assembler",{"v":4.333333333333333,"d":"4.33"},{"v":65,"d":"65.0"}]
["Copper Ingot","Copper Alloy Ingot",192.5,"Foundry",{"v":1.925,"d":"1.93"},30.8]
["Copper Ore",null,{"v":96.25,"d":"96.3"}]
["Rubber","Rubber",{"v":426,"d":"426.0"},"Refinery",{"v":21.3,"d":"21.30"},{"v":639,"d":"639.0"}]
["Petroleum Coke","Petroleum Coke",{"v":639,"d":"639.0"},"Refinery",{"v":5.325,"d":"5.33"},319.5]
["Crude Oil",null,{"v":798.75,"d":"798.8"}]
["Heavy Oil Residue","Heavy Oil Residue",{"v":213,"d":"213.0"},"Refinery",{"v":5.325,"d":"5.33"},{"v":159.75,"d":"159.8"}]
["Modular Frame","Modular Frame",{"v":16,"d":"16.0"},"Assembler",{"v":8,"d":"8.00"},{"v":120,"d":"120.0"}]
["Encased Industrial Beam","Escased Industrial Pipe",{"v":20,"d":"20.0"},"Assembler",{"v":5,"d":"5.00"},{"v":75,"d":"75.0"}]
["Concrete","Concrete",{"v":144,"d":"144.0"},"Constructor",{"v":9.6,"d":"9.60"},38.4]
["Reinforced Iron Plate","Stitched Iron Plate",{"v":54.005332946777344,"d":"54.0"},"Assembler",{"v":9.600948079427083,"d":"9.60"},{"v":144.01422119140625,"d":"144.0"}]
["Iron Rod","Iron Rod",{"v":96,"d":"96.0"},"Constructor",{"v":6.4,"d":"6.40"},25.6]
["Limestone",null,{"v":512.510498046875,"d":"512.5"}]
["Iron Plate","Iron Plate",{"v":180.0177764892578,"d":"180.0"},"Constructor",{"v":9.00088882446289,"d":"9.00"},{"v":36.00355529785156,"d":"36.0"}]
["Ocean",null,{"v":891.9273853302002,"d":"891.9"}]
["Quartz Crystal","Pure Quartz Crystal",{"v":216.0384063720703,"d":"216.0"},"Refinery",{"v":4.115017264229911,"d":"4.12"},{"v":123.45051792689732,"d":"123.5"}]
["Raw Quartz",null,{"v":326.0699691772461,"d":"326.1"}]
["Silica","Cheap Silica",112.5,"Assembler",{"v":4.293893129770993,"d":"4.29"},{"v":64.40839694656489,"d":"64.4"}]
["Caterium Ingot","Caterium Ingot",32.5,"Smelter",{"v":2.1666666666666665,"d":"2.17"},{"v":8.666666666666666,"d":"8.7"}]
["Caterium Ore",null,97.5]

{"sheet":"Alt","index":4,"n_rows":85,"n_cols":3,"rows_kept":85}
["Item Name","Options","Choose Recipe"]
["Adaptive Control Unit",1,"Adaptive Control Unit"]
["AI Limiter",1,"AI Limiter"]
["Alclad Aluminum Sheet",1,"Alclad Aluminum Sheet"]
["Alumina Solution",2,"Sloppy Alumina"]
["Aluminum Casing",2,"Alclad Casing"]
["Aluminum Ingot",2,"Pure Aluminum Ingot"]
["Aluminum Scrap",3,"Electrode Aluminum Scrap"]
["Assembly Director System",1,"Assembly Director System"]
["Automated Wiring",2,"Automated Wiring"]
["Battery",2,"Battery"]
["Beacon",2,"Beacon"]
["Black Powder",2,"Fine Black Powder"]
["Cable",4,"Cable"]
["Caterium Ingot",2,"Caterium Ingot"]
["Circuit Board",4,"Electrode Circuit Board"]
["Cluster Nobelisk",1,"Cluster Nobelisk"]
["Compacted Coal",1,"Compacted Coal"]
["Computer",3,"Crystal Computer"]
["Concrete",1,"Concrete"]
["Cooling System",2,"Cooling Device"]
["Copper Ingot",3,"Copper Alloy Ingot"]
["Copper Sheet",2,"Steamed Copper Sheet"]
["Crystal Oscillator",2,"Crystal Oscillator"]
["Electromagnetic Control Rod",2,"Electromagnetic Control Rod"]
["Encased Industrial Beam",2,"Escased Industrial Pipe"]
["Encased Plutonium Cell",2,"Encased Plutonium Cell"]
["Encased Uranium Cell",2,"Encased Uranium Cell"]
["Explosive Rebar",1,"Explosive Rebar"]
["Fuel",2,"Diluted Fuel"]
["Fused Modular Frame",2,"Heat-Fused Frame"]
["Gas Filter",1,"Gas Filter"]
["Gas Nobelisk",1,"Gas Nobelisk"]
["Heat Sink",2,"Heat Exchanger"]
["Heavy Modular Frame",3,"Heavy Encased Frame"]
["Heavy Oil Residue",1,"Heavy Oil Residue"]
["High-Speed Connector",2,"Silicone High-Speed Connector"]
["Homing Rifle Ammo",1,"Homing Rifle Ammo"]
["Iodine Infused Filter",1,"Iodine Infused Filter"]
["Iron Ingot",3,"Pure Iron Ingot"]
["Iron Plate",3,"Iron Plate"]
["Iron Rebar",1,"Iron Rebar"]
["Iron Rod",2,"Iron Rod"]
["Magnetic Field Generator",1,"Magnetic Field Generator"]
["Modular Engine",1,"Modular Engine"]
["Modular Frame",3,"Modular Frame"]
["Motor",3,"Rigour Motor"]
["Nitric Acid",1,"Nitric Acid"]
["Nobelisk",2,"Nobelisk"]
["Non-fissile Uranium",2,"Non-fissile Uranium"]
["Nuke Nobelisk",1,"Nuke Nobelisk"]
["Packaged Fuel",1,"Diluted Packaged Fuel"]
["Petroleum Coke",1,"Petroleum Coke"]
["Plutonium Fuel Rod",2,"Plutonium Fuel Unit"]
["Plutonium Pellet",1,"Plutonium Pellet"]
["Pressure Conversion Cube",1,"Pressure Conversion Cube"]
["Pulse Nobelisk",1,"Pulse Nobelisk"]
["Quartz Crystal",2,"Pure Quartz Crystal"]
["Quickwire",2,"Fused Quickwire"]
["Radio Control Unit",3,"Radio Control System"]
["Reinforced Iron Plate",4,"Stitched Iron Plate"]
["Rifle Ammo",1,"Rifle Ammo"]
["Rotor",3,"Steel Rotor"]
["Rubber",1,"Rubber"]
["Screw",3,"Cast Screw"]
["Shatter Rebar",1,"Shatter Rebar"]
["Silica",2,"Cheap Silica"]
["Smart Plating",2,"Smart Plating"]
["Smokeless Powder",1,"Smokeless Powder"]
["Stator",2,"Stator"]
["Steel Beam",1,"Steel Beam"]
["Steel Ingot",4,"Solid Steel Ingot"]
["Steel Pipe",1,"Steel Pipe"]
["Stun Rebar",1,"Stun Rebar"]
["Sulfuric Acid",1,"Sulfuric Acid"]
["Supercomputer",3,"Supercomputer"]
["Thermal Propulsion Rocket",1,"Thermal Propulsion Rocket"]
["Turbo Motor",3,"Turbo Electric Motor"]
["Turbo Rifle Ammo",2,"Turbo Rifle Ammo"]
["Turbofuel",3,"Turbofuel"]
["Uranium Fuel Rod",2,"Uranium Fuel Rod"]
["Uranium Waste",1,"Uranium Waste"]
["Versatile Framework",2,"Versatile Framework"]
["Water",1,"Water"]
["Wire",4,"Iron Wire"]

{"sheet":"Recipes","index":5,"n_rows":366,"n_cols":8,"rows_kept":366}
["RecipeName","InputName","InputPPM","OutputName","OutputPPM","Machine","Power Req'd","Chosen"]
["Adaptive Control Unit","Automated Wiring",7.5,"Adaptive Control Unit",1,"Manufacturer",55,{"$f":"COUNTIF(Alt!C:C,A2)","v":1}]
["Adaptive Control Unit","Circuit Board",5,"Adaptive Control Unit",1,"Manufacturer",55,{"$f":"COUNTIF(Alt!C:C,A3)","v":1}]
["Adaptive Control Unit","Heavy Modular Frame",1,"Adaptive Control Unit",1,"Manufacturer",55,{"$f":"COUNTIF(Alt!C:C,A4)","v":1}]
["Adaptive Control Unit","Computer",1,"Adaptive Control Unit",1,"Manufacturer",55,{"$f":"COUNTIF(Alt!C:C,A5)","v":1}]
["AI Limiter","Copper Sheet",25,"AI Limiter",5,"Assembler",15,{"$f":"COUNTIF(Alt!C:C,A6)","v":1}]
["AI Limiter","Quickwire",100,"AI Limiter",5,"Assembler",15,{"$f":"COUNTIF(Alt!C:C,A7)","v":1}]
["Alclad Aluminum Sheet","Aluminum Ingot",30,"Alclad Aluminum Sheet",30,"Assembler",30,{"$f":"COUNTIF(Alt!C:C,A8)","v":1}]
["Alclad Aluminum Sheet","Copper Ingot",10,"Alclad Aluminum Sheet",30,"Assembler",30,{"$f":"COUNTIF(Alt!C:C,A9)","v":1}]
["Sloppy Alumina","Bauxite",200,"Alumina Solution",240,"Refinery",30,{"$f":"COUNTIF(Alt!C:C,A10)","v":1}]
["Sloppy Alumina","Water",200,"Alumina Solution",240,"Refinery",30,{"$f":"COUNTIF(Alt!C:C,A11)","v":1}]
["Alumina Solution","Bauxite",120,"Alumina Solution",120,"Refinery",30,{"$f":"COUNTIF(Alt!C:C,A12)","v":0}]
["Alumina Solution","Water",180,"Alumina Solution",120,"Refinery",30,{"$f":"COUNTIF(Alt!C:C,A13)","v":0}]
["Alclad Casing","Aluminum Ingot",150,"Aluminum Casing",112.5,"Assembler",15,{"$f":"COUNTIF(Alt!C:C,A14)","v":1}]
["Alclad Casing","Copper Ingot",75,"Aluminum Casing",112.5,"Assembler",15,{"$f":"COUNTIF(Alt!C:C,A15)","v":1}]
["Aluminum Casing","Aluminum Ingot",90,"Aluminum Casing",60,"Constructor",4,{"$f":"COUNTIF(Alt!C:C,A16)","v":0}]
["Pure Aluminum Ingot","Aluminum Scrap",60,"Aluminum Ingot",30,"Smelter",4,{"$f":"COUNTIF(Alt!C:C,A17)","v":1}]
["Aluminum Ingot","Aluminum Scrap",90,"Aluminum Ingot",60,"Foundry",16,{"$f":"COUNTIF(Alt!C:C,A18)","v":0}]
["Aluminum Ingot","Silica",75,"Aluminum Ingot",60,"Foundry",16,{"$f":"COUNTIF(Alt!C:C,A19)","v":0}]
["Electrode Aluminum Scrap","Alumina Solution",180,"Aluminum Scrap",300,"Refinery",30,{"$f":"COUNTIF(Alt!C:C,A20)","v":1}]
["Electrode Aluminum Scrap","Petroleum Coke",60,"Aluminum Scrap",300,"Refinery",30,{"$f":"COUNTIF(Alt!C:C,A21)","v":1}]
["Aluminum Scrap","Alumina Solution",240,"Aluminum Scrap",360,"Refinery",30,{"$f":"COUNTIF(Alt!C:C,A22)","v":0}]
["Aluminum Scrap","Coal",120,"Aluminum Scrap",360,"Refinery",30,{"$f":"COUNTIF(Alt!C:C,A23)","v":0}]
["Instant Scrap","Bauxite",150,"Aluminum Scrap",300,"Blender",75,{"$f":"COUNTIF(Alt!C:C,A24)","v":0}]
["Instant Scrap","Coal",100,"Aluminum Scrap",300,"Blender",75,{"$f":"COUNTIF(Alt!C:C,A25)","v":0}]
["Instant Scrap","Sulfuric Acid",50,"Aluminum Scrap",300,"Blender",75,{"$f":"COUNTIF(Alt!C:C,A26)","v":0}]
["Instant Scrap","Water",110,"Aluminum Scrap",300,"Blender",75,{"$f":"COUNTIF(Alt!C:C,A27)","v":0}]
["Assembly Director System","Adaptive Control Unit",1.5,"Assembly Director System",0.75,"Assembler",15,{"$f":"COUNTIF(Alt!C:C,A28)","v":1}]
["Assembly Director System","Supercomputer",0.75,"Assembly Director System",0.75,"Assembler",15,{"$f":"COUNTIF(Alt!C:C,A29)","v":1}]
["Automated Wiring","Stator",2.5,"Automated Wiring",2.5,"Assembler",15,{"$f":"COUNTIF(Alt!C:C,A30)","v":1}]
["Automated Wiring","Cable",50,"Automated Wiring",2.5,"Assembler",15,{"$f":"COUNTIF(Alt!C:C,A31)","v":1}]
["High-Speed Wiring","Stator",3.75,"Automated Wiring",7.5,"Manufacturer",55,{"$f":"COUNTIF(Alt!C:C,A32)","v":0}]
["High-Speed Wiring","Wire",75,"Automated Wiring",7.5,"Manufacturer",55,{"$f":"COUNTIF(Alt!C:C,A33)","v":0}]
["High-Speed Wiring","High-Speed Connector",1.875,"Automated Wiring",7.5,"Manufacturer",55,{"$f":"COUNTIF(Alt!C:C,A34)","v":0}]
["Battery","Sulfuric Acid",50,"Battery",20,"Blender",75,{"$f":"COUNTIF(Alt!C:C,A35)","v":1}]
["Battery","Alumina Solution",40,"Battery",20,"Blender",75,{"$f":"COUNTIF(Alt!C:C,A36)","v":1}]
["Battery","Aluminum Casing",20,"Battery",20,"Blender",75,{"$f":"COUNTIF(Alt!C:C,A37)","v":1}]
["Classic Battery","Sulfur",45,"Battery",30,"Manufacturer",55,{"$f":"COUNTIF(Alt!C:C,A38)","v":0}]
["Classic Battery","Alclad Aluminum Sheet",52.5,"Battery",30,"Manufacturer",55,{"$f":"COUNTIF(Alt!C:C,A39)","v":0}]
["Classic Battery","Plastic",60,"Battery",30,"Manufacturer",55,{"$f":"COUNTIF(Alt!C:C,A40)","v":0}]
["Classic Battery","Wire",90,"Battery",30,"Manufacturer",55,{"$f":"COUNTIF(Alt!C:C,A41)","v":0}]
["Beacon","Iron Plate",22.5,"Beacon",7.5,"Manufacturer",55,{"$f":"COUNTIF(Alt!C:C,A42)","v":1}]
["Beacon","Iron Rod",7.5,"Beacon",7.5,"Manufacturer",55,{"$f":"COUNTIF(Alt!C:C,A43)","v":1}]
["Beacon","Wire",112.5,"Beacon",7.5,"Manufacturer",55,{"$f":"COUNTIF(Alt!C:C,A44)","v":1}]
["Beacon","Cable",15,"Beacon",7.5,"Manufacturer",55,{"$f":"COUNTIF(Alt!C:C,A45)","v":1}]
["Crystal Beacon","Steel Beam",2,"Beacon",10,"Manufacturer",55,{"$f":"COUNTIF(Alt!C:C,A46)","v":0}]
["Crystal Beacon","Steel Pipe",8,"Beacon",10,"Manufacturer",55,{"$f":"COUNTIF(Alt!C:C,A47)","v":0}]
["Crystal Beacon","Crystal Oscillator",0.5,"Beacon",10,"Manufacturer",55,{"$f":"COUNTIF(Alt!C:C,A48)","v":0}]
["Fine Black Powder","Sulfur",7.5,"Black Powder",15,"Assembler",15,{"$f":"COUNTIF(Alt!C:C,A49)","v":1}]
["Fine Black Powder","Compacted Coal",3.75,"Black Powder",15,"Assembler",15,{"$f":"COUNTIF(Alt!C:C,A50)","v":1}]
["Black Powder","Coal",7.5,"Black Powder",7.5,"Assembler",15,{"$f":"COUNTIF(Alt!C:C,A51)","v":0}]
["Black Powder","Sulfur",15,"Black Powder",7.5,"Assembler",15,{"$f":"COUNTIF(Alt!C:C,A52)","v":0}]
["Cable","Wire",60,"Cable",30,"Constructor",4,{"$f":"COUNTIF(Alt!C:C,A53)","v":1}]
["Insulated Cable","Wire",45,"Cable",100,"Assembler",15,{"$f":"COUNTIF(Alt!C:C,A54)","v":0}]
["Insulated Cable","Rubber",45,"Cable",100,"Assembler",15,{"$f":"COUNTIF(Alt!C:C,A55)","v":0}]
["Coated Cable","Wire",37.5,"Cable",67.5,"Refinery",30,{"$f":"COUNTIF(Alt!C:C,A56)","v":0}]
["Coated Cable","Heavy Oil Residue",15,"Cable",67.5,"Refinery",30,{"$f":"COUNTIF(Alt!C:C,A57)","v":0}]
["Quickwire Cable","Quickwire",7.5,"Cable",27.5,"Assembler",15,{"$f":"COUNTIF(Alt!C:C,A58)","v":0}]
["Quickwire Cable","Rubber",5,"Cable",27.5,"Assembler",15,{"$f":"COUNTIF(Alt!C:C,A59)","v":0}]
["Caterium Ingot","Caterium Ore",45,"Caterium Ingot",15,"Smelter",4,{"$f":"COUNTIF(Alt!C:C,A60)","v":1}]
["Pure Caterium Ingot","Caterium Ore",24,"Caterium Ingot",12,"Refinery",30,{"$f":"COUNTIF(Alt!C:C,A61)","v":0}]
["Pure Caterium Ingot","Water",24,"Caterium Ingot",12,"Refinery",30,{"$f":"COUNTIF(Alt!C:C,A62)","v":0}]
["Electrode Circuit Board","Rubber",30,"Circuit Board",5,"Assembler",15,{"$f":"COUNTIF(Alt!C:C,A63)","v":1}]
["Electrode Circuit Board","Petroleum Coke",45,"Circuit Board",5,"Assembler",15,{"$f":"COUNTIF(Alt!C:C,A64)","v":1}]
["Silicone Circuit Board","Copper Sheet",27.5,"Circuit Board",12.5,"Assembler",15,{"$f":"COUNTIF(Alt!C:C,A65)","v":0}]
["Silicone Circuit Board","Silica",27.5,"Circuit Board",12.5,"Assembler",15,{"$f":"COUNTIF(Alt!C:C,A66)","v":0}]
["Caterium Circuit Board","Plastic",12.5,"Circuit Board",8.75,"Assembler",15,{"$f":"COUNTIF(Alt!C:C,A67)","v":0}]
["Caterium Circuit Board","Quickwire",37.5,"Circuit Board",8.75,"Assembler",15,{"$f":"COUNTIF(Alt!C:C,A68)","v":0}]
["Circuit Board","Copper Sheet",15,"Circuit Board",7.5,"Assembler",15,{"$f":"COUNTIF(Alt!C:C,A69)","v":0}]
["Circuit Board","Plastic",30,"Circuit Board",7.5,"Assembler",15,{"$f":"COUNTIF(Alt!C:C,A70)","v":0}]
["Cluster Nobelisk","Nobelisk",7.5,"Cluster Nobelisk",2.5,"Assembler",15,{"$f":"COUNTIF(Alt!C:C,A71)","v":1}]
["Cluster Nobelisk","Smokeless Powder",10,"Cluster Nobelisk",2.5,"Assembler",15,{"$f":"COUNTIF(Alt!C:C,A72)","v":1}]
["Compacted Coal","Coal",25,"Compacted Coal",25,"Assembler",15,{"$f":"COUNTIF(Alt!C:C,A73)","v":1}]
["Compacted Coal","Sulfur",25,"Compacted Coal",25,"Assembler",15,{"$f":"COUNTIF(Alt!C:C,A74)","v":1}]
["Crystal Computer","Circuit Board",7.5,"Computer",2.8125,"Assembler",15,{"$f":"COUNTIF(Alt!C:C,A75)","v":1}]
["Crystal Computer","Crystal Oscillator",2.813,"Computer",2.8125,"Assembler",15,{"$f":"COUNTIF(Alt!C:C,A76)","v":1}]
["Caterium Computer","Circuit Board",26.25,"Computer",3.75,"Manufacturer",55,{"$f":"COUNTIF(Alt!C:C,A77)","v":0}]
["Caterium Computer","Quickwire",105,"Computer",3.75,"Manufacturer",55,{"$f":"COUNTIF(Alt!C:C,A78)","v":0}]
["Caterium Computer","Rubber",45,"Computer",3.75,"Manufacturer",55,{"$f":"COUNTIF(Alt!C:C,A79)","v":0}]
["Computer","Circuit Board",25,"Computer",2.5,"Manufacturer",55,{"$f":"COUNTIF(Alt!C:C,A80)","v":0}]
["Computer","Cable",22.5,"Computer",2.5,"Manufacturer",55,{"$f":"COUNTIF(Alt!C:C,A81)","v":0}]
["Computer","Plastic",45,"Computer",2.5,"Manufacturer",55,{"$f":"COUNTIF(Alt!C:C,A82)","v":0}]
["Computer","Screw",130,"Computer",2.5,"Manufacturer",55,{"$f":"COUNTIF(Alt!C:C,A83)","v":0}]
["Concrete","Limestone",45,"Concrete",15,"Constructor",4,0]
["Cooling Device","Heat Sink",9.375,"Cooling System",3.75,"Blender",75,{"$f":"COUNTIF(Alt!C:C,A85)","v":1}]
["Cooling Device","Motor",1.875,"Cooling System",3.75,"Blender",75,{"$f":"COUNTIF(Alt!C:C,A86)","v":1}]
["Cooling Device","Nitrogen Gas",45,"Cooling System",3.75,"Blender",75,{"$f":"COUNTIF(Alt!C:C,A87)","v":1}]
["Cooling System","Heat Sink",12,"Cooling System",6,"Blender",75,{"$f":"COUNTIF(Alt!C:C,A88)","v":0}]
["Cooling System","Rubber",12,"Cooling System",6,"Blender",75,{"$f":"COUNTIF(Alt!C:C,A89)","v":0}]
["Cooling System","Water",30,"Cooling System",6,"Blender",75,{"$f":"COUNTIF(Alt!C:C,A90)","v":0}]
["Cooling System","Nitrogen Gas",150,"Cooling System",6,"Blender",75,{"$f":"COUNTIF(Alt!C:C,A91)","v":0}]
["Copper Alloy Ingot","Copper Ore",50,"Copper Ingot",100,"Foundry",16,{"$f":"COUNTIF(Alt!C:C,A92)","v":1}]
["Copper Alloy Ingot","Iron Ore",25,"Copper Ingot",100,"Foundry",16,{"$f":"COUNTIF(Alt!C:C,A93)","v":1}]
["Copper Ingot","Copper Ore",30,"Copper Ingot",30,"Smelter",4,{"$f":"COUNTIF(Alt!C:C,A94)","v":0}]
["Pure Copper Ingot","Copper Ore",15,"Copper Ingot",37.5,"Refinery",30,{"$f":"COUNTIF(Alt!C:C,A95)","v":0}]
["Pure Copper Ingot","Water",10,"Copper Ingot",37.5,"Refinery",30,{"$f":"COUNTIF(Alt!C:C,A96)","v":0}]
["Copper Powder","Copper Ingot",300,"Copper Powder",50,"Constructor",4,{"$f":"COUNTIF(Alt!C:C,A97)","v":0}]
["Steamed Copper Sheet","Copper Ingot",22.5,"Copper Sheet",22.5,"Refinery",30,{"$f":"COUNTIF(Alt!C:C,A98)","v":1}]
["Steamed Copper Sheet","Water",22.5,"Copper Sheet",22.5,"Refinery",30,{"$f":"COUNTIF(Alt!C:C,A99)","v":1}]
["Copper Sheet","Copper Ingot",20,"Copper Sheet",10,"Constructor",4,{"$f":"COUNTIF(Alt!C:C,A100)","v":0}]
["Crystal Oscillator","Quartz Crystal",18,"Crystal Oscillator",1,"Manufacturer",55,{"$f":"COUNTIF(Alt!C:C,A101)","v":1}]
["Crystal Oscillator","Cable",14,"Crystal Oscillator",1,"Manufacturer",55,{"$f":"COUNTIF(Alt!C:C,A102)","v":1}]
["Crystal Oscillator","Reinforced Iron Plate",2.5,"Crystal Oscillator",1,"Manufacturer",55,{"$f":"COUNTIF(Alt!C:C,A103)","v":1}]
["Insulated Crystal Oscillator","Quartz Crystal",18.75,"Crystal Oscillator",1.875,"Manufacturer",55,{"$f":"COUNTIF(Alt!C:C,A104)","v":0}]
["Insulated Crystal Oscillator","Rubber",13.125,"Crystal Oscillator",1.875,"Manufacturer",55,{"$f":"COUNTIF(Alt!C:C,A105)","v":0}]
["Insulated Crystal Oscillator","AI Limiter",1.875,"Crystal Oscillator",1.875,"Manufacturer",55,{"$f":"COUNTIF(Alt!C:C,A106)","v":0}]
["Electromagnetic Control Rod","Stator",6,"Electromagnetic Control Rod",4,"Assembler",15,{"$f":"COUNTIF(Alt!C:C,A107)","v":1}]
["Electromagnetic Control Rod","AI Limiter",4,"Electromagnetic Control Rod",4,"Assembler",15,{"$f":"COUNTIF(Alt!C:C,A108)","v":1}]
["Electromagnetic Connection Rod","Stator",8,"Electromagnetic Control Rod",8,"Assembler",15,{"$f":"COUNTIF(Alt!C:C,A109)","v":0}]
["Electromagnetic Connection Rod","High-Speed Connector",4,"Electromagnetic Control Rod",8,"Assembler",15,{"$f":"COUNTIF(Alt!C:C,A110)","v":0}]
["Escased Industrial Pipe","Steel Pipe",28,"Encased Industrial Beam",4,"Assembler",15,{"$f":"COUNTIF(Alt!C:C,A111)","v":1}]
["Escased Industrial Pipe","Concrete",20,"Encased Industrial Beam",4,"Assembler",15,{"$f":"COUNTIF(Alt!C:C,A112)","v":1}]
["Encased Industrial Beam","Steel Beam",24,"Encased Industrial Beam",6,"Assembler",15,{"$f":"COUNTIF(Alt!C:C,A113)","v":0}]
["Encased Industrial Beam","Concrete",30,"Encased Industrial Beam",6,"Assembler",15,{"$f":"COUNTIF(Alt!C:C,A114)","v":0}]
["Encased Plutonium Cell","Plutonium Pellet",10,"Encased Plutonium Cell",5,"Assembler",15,{"$f":"COUNTIF(Alt!C:C,A115)","v":1}]
["Encased Plutonium Cell","Concrete",20,"Encased Plutonium Cell",5,"Assembler",15,{"$f":"COUNTIF(Alt!C:C,A116)","v":1}]
["Instant Plutonium Cell","Non-fissile Uranium",75,"Encased Plutonium Cell",10,"Particle Accelerator",1000,{"$f":"COUNTIF(Alt!C:C,A117)","v":0}]
["Instant Plutonium Cell","Aluminum Casing",10,"Encased Plutonium Cell",10,"Particle Accelerator",1000,{"$f":"COUNTIF(Alt!C:C,A118)","v":0}]
["Encased Uranium Cell","Uranium",50,"Encased Uranium Cell",25,"Blender",75,{"$f":"COUNTIF(Alt!C:C,A119)","v":1}]
["Encased Uranium Cell","Concrete",15,"Encased Uranium Cell",25,"Blender",75,{"$f":"COUNTIF(Alt!C:C,A120)","v":1}]
["Encased Uranium Cell","Sulfuric Acid",30,"Encased Uranium Cell",25,"Blender",75,{"$f":"COUNTIF(Alt!C:C,A121)","v":1}]
["Infused Uranium Cell","Uranium",25,"Encased Uranium Cell",20,"Manufacturer",55,{"$f":"COUNTIF(Alt!C:C,A122)","v":0}]
["Infused Uranium Cell","Silica",15,"Encased Uranium Cell",20,"Manufacturer",55,{"$f":"COUNTIF(Alt!C:C,A123)","v":0}]
["Infused Uranium Cell","Sulfur",25,"Encased Uranium Cell",20,"Manufacturer",55,{"$f":"COUNTIF(Alt!C:C,A124)","v":0}]
["Infused Uranium Cell","Quickwire",75,"Encased Uranium Cell",20,"Manufacturer",55,{"$f":"COUNTIF(Alt!C:C,A125)","v":0}]
["Explosive Rebar","Iron Rebar",10,"Explosive Rebar",5,"Manufacturer",55,{"$f":"COUNTIF(Alt!C:C,A126)","v":1}]
["Explosive Rebar","Smokeless Powder",10,"Explosive Rebar",5,"Manufacturer",55,{"$f":"COUNTIF(Alt!C:C,A127)","v":1}]
["Explosive Rebar","Steel Pipe",10,"Explosive Rebar",5,"Manufacturer",55,{"$f":"COUNTIF(Alt!C:C,A128)","v":1}]
["Diluted Fuel","Heavy Oil Residue",50,"Fuel",100,"Blender",75,{"$f":"COUNTIF(Alt!C:C,A129)","v":1}]
["Diluted Fuel","Water",100,"Fuel",100,"Blender",75,{"$f":"COUNTIF(Alt!C:C,A130)","v":1}]
["Unpackage Fuel","Packaged Fuel",60,"Fuel",60,"Packager",10,{"$f":"COUNTIF(Alt!C:C,A131)","v":0}]
["Heat-Fused Frame","Heavy Modular Frame",3,"Fused Modular Frame",3,"Blender",75,{"$f":"COUNTIF(Alt!C:C,A132)","v":1}]
["Heat-Fused Frame","Aluminum Ingot",150,"Fused Modular Frame",3,"Blender",75,{"$f":"COUNTIF(Alt!C:C,A133)","v":1}]
["Heat-Fused Frame","Nitric Acid",24,"Fused Modular Frame",3,"Blender",75,{"$f":"COUNTIF(Alt!C:C,A134)","v":1}]
["Heat-Fused Frame","Fuel",30,"Fused Modular Frame",3,"Blender",75,{"$f":"COUNTIF(Alt!C:C,A135)","v":1}]
["Fused Modular Frame","Heavy Modular Frame",1.5,"Fused Modular Frame",1.5,"Blender",75,{"$f":"COUNTIF(Alt!C:C,A136)","v":0}]
["Fused Modular Frame","Aluminum Casing",75,"Fused Modular Frame",1.5,"Blender",75,{"$f":"COUNTIF(Alt!C:C,A137)","v":0}]
["Fused Modular Frame","Nitrogen Gas",37.5,"Fused Modular Frame",1.5,"Blender",75,{"$f":"COUNTIF(Alt!C:C,A138)","v":0}]
["Gas Filter","Coal",37.5,"Gas Filter",7.5,"Manufacturer",55,{"$f":"COUNTIF(Alt!C:C,A139)","v":1}]
["Gas Filter","Rubber",15,"Gas Filter",7.5,"Manufacturer",55,{"$f":"COUNTIF(Alt!C:C,A140)","v":1}]
["Gas Filter","Fabric",15,"Gas Filter",7.5,"Manufacturer",55,{"$f":"COUNTIF(Alt!C:C,A141)","v":1}]
["Gas Nobelisk","Nobelisk",5,"Gas Nobelisk",5,"Assembler",15,{"$f":"COUNTIF(Alt!C:C,A142)","v":1}]
["Gas Nobelisk","Biomass",50,"Gas Nobelisk",5,"Assembler",15,{"$f":"COUNTIF(Alt!C:C,A143)","v":1}]
["Heat Exchanger","Aluminum Casing",30,"Heat Sink",10,"Assembler",15,{"$f":"COUNTIF(Alt!C:C,A144)","v":1}]
["Heat Exchanger","Rubber",30,"Heat Sink",10,"Assembler",15,{"$f":"COUNTIF(Alt!C:C,A145)","v":1}]
["Heat Sink","Alclad Aluminum Sheet",37.5,"Heat Sink",7.5,"Assembler",15,{"$f":"COUNTIF(Alt!C:C,A146)","v":0}]
["Heat Sink","Copper Sheet",22.5,"Heat Sink",7.5,"Assembler",15,{"$f":"COUNTIF(Alt!C:C,A147)","v":0}]
["Heavy Encased Frame","Modular Frame",7.5,"Heavy Modular Frame",2.8125,"Manufacturer",55,{"$f":"COUNTIF(Alt!C:C,A148)","v":1}]
["Heavy Encased Frame","Encased Industrial Beam",9.375,"Heavy Modular Frame",2.8125,"Manufacturer",55,{"$f":"COUNTIF(Alt!C:C,A149)","v":1}]
["Heavy Encased Frame","Steel Pipe",33.75,"Heavy Modular Frame",2.8125,"Manufacturer",55,{"$f":"COUNTIF(Alt!C:C,A150)","v":1}]
["Heavy Encased Frame","Concrete",20.625,"Heavy Modular Frame",2.8125,"Manufacturer",55,{"$f":"COUNTIF(Alt!C:C,A151)","v":1}]
["Heavy Modular Frame","Modular Frame",10,"Heavy Modular Frame",2,"Manufacturer",55,{"$f":"COUNTIF(Alt!C:C,A152)","v":0}]
["Heavy Modular Frame","Steel Pipe",30,"Heavy Modular Frame",2,"Manufacturer",55,{"$f":"COUNTIF(Alt!C:C,A153)","v":0}]
["Heavy Modular Frame","Encased Industrial Beam",10,"Heavy Modular Frame",2,"Manufacturer",55,{"$f":"COUNTIF(Alt!C:C,A154)","v":0}]
["Heavy Modular Frame","Screw",200,"Heavy Modular Frame",2,"Manufacturer",55,{"$f":"COUNTIF(Alt!C:C,A155)","v":0}]
["Heavy Flexible Frame","Modular Frame",18.75,"Heavy Modular Frame",3.75,"Manufacturer",55,{"$f":"COUNTIF(Alt!C:C,A156)","v":0}]
["Heavy Flexible Frame","Encased Industrial Beam",11.25,"Heavy Modular Frame",3.75,"Manufacturer",55,{"$f":"COUNTIF(Alt!C:C,A157)","v":0}]
["Heavy Flexible Frame","Rubber",75,"Heavy Modular Frame",3.75,"Manufacturer",55,{"$f":"COUNTIF(Alt!C:C,A158)","v":0}]
["Heavy Flexible Frame","Screw",390,"Heavy Modular Frame",3.75,"Manufacturer",55,{"$f":"COUNTIF(Alt!C:C,A159)","v":0}]
["Heavy Oil Residue","Crude Oil",30,"Heavy Oil Residue",40,"Refinery",30,{"$f":"COUNTIF(Alt!C:C,A160)","v":1}]
["Silicone High-Speed Connector","Quickwire",90,"High-Speed Connector",3,"Manufacturer",55,{"$f":"COUNTIF(Alt!C:C,A161)","v":1}]
["Silicone High-Speed Connector","Silica",37.5,"High-Speed Connector",3,"Manufacturer",55,{"$f":"COUNTIF(Alt!C:C,A162)","v":1}]
["Silicone High-Speed Connector","Circuit Board",3,"High-Speed Connector",3,"Manufacturer",55,{"$f":"COUNTIF(Alt!C:C,A163)","v":1}]
["High-Speed Connector","Quickwire",210,"High-Speed Connector",3.8,"Manufacturer",55,{"$f":"COUNTIF(Alt!C:C,A164)","v":0}]
["High-Speed Connector","Cable",37.5,"High-Speed Connector",3.8,"Manufacturer",55,{"$f":"COUNTIF(Alt!C:C,A165)","v":0}]
["High-Speed Connector","Circuit Board",3.75,"High-Speed Connector",3.8,"Manufacturer",55,{"$f":"COUNTIF(Alt!C:C,A166)","v":0}]
["Homing Rifle Ammo","Rifle Ammo",50,"Homing Rifle Ammo",10,"Assembler",15]
["Homing Rifle Ammo","High-Speed Connector",2.5,"Homing Rifle Ammo",10,"Assembler",15]
["Iodine Infused Filter","Gas Filter",3.75,"Iodine Infused Filter",3.75,"Manufacturer",55,{"$f":"COUNTIF(Alt!C:C,A169)","v":1}]
["Iodine Infused Filter","Quickwire",30,"Iodine Infused Filter",3.75,"Manufacturer",55,{"$f":"COUNTIF(Alt!C:C,A170)","v":1}]
["Iodine Infused Filter","Aluminum Casing",3.75,"Iodine Infused Filter",3.75,"Manufacturer",55,{"$f":"COUNTIF(Alt!C:C,A171)","v":1}]
["Pure Iron Ingot","Iron Ore",35,"Iron Ingot",65,"Refinery",30,{"$f":"COUNTIF(Alt!C:C,A172)","v":1}]
["Pure Iron Ingot","Water",20,"Iron Ingot",65,"Refinery",30,{"$f":"COUNTIF(Alt!C:C,A173)","v":1}]
["Iron Alloy Ingot","Iron Ore",20,"Iron Ingot",50,"Foundry",16,{"$f":"COUNTIF(Alt!C:C,A174)","v":0}]
["Iron Alloy Ingot","Copper Ore",20,"Iron Ingot",50,"Foundry",16,{"$f":"COUNTIF(Alt!C:C,A175)","v":0}]
["Iron Ingot","Iron Ore",30,"Iron Ingot",30,"Smelter",4,{"$f":"COUNTIF(Alt!C:C,A176)","v":0}]
["Iron Plate","Iron Ingot",30,"Iron Plate",20,"Constructor",4,{"$f":"COUNTIF(Alt!C:C,A177)","v":1}]
["Coated Iron Plate","Iron Ingot",50,"Iron Plate",75,"Assembler",15,{"$f":"COUNTIF(Alt!C:C,A178)","v":0}]
["Coated Iron Plate","Plastic",10,"Iron Plate",75,"Assembler",15,{"$f":"COUNTIF(Alt!C:C,A179)","v":0}]
["Steel Coated Plate","Steel Ingot",7.5,"Iron Plate",45,"Assembler",15,{"$f":"COUNTIF(Alt!C:C,A180)","v":0}]
["Steel Coated Plate","Plastic",5,"Iron Plate",45,"Assembler",15,{"$f":"COUNTIF(Alt!C:C,A181)","v":0}]
["Iron Rebar","Iron Rod",15,"Iron Rebar",15,"Constructor",4,{"$f":"COUNTIF(Alt!C:C,A182)","v":1}]
["Iron Rod","Iron Ingot",15,"Iron Rod",15,"Constructor",4,{"$f":"COUNTIF(Alt!C:C,A183)","v":1}]
["Steel Rod","Steel Ingot",12,"Iron Rod",48,"Constructor",4,{"$f":"COUNTIF(Alt!C:C,A184)","v":0}]
["Magnetic Field Generator","Versatile Framework",2.5,"Magnetic Field Generator",1,"Manufacturer",55,{"$f":"COUNTIF(Alt!C:C,A185)","v":1}]
["Magnetic Field Generator","Electromagnetic Control Rod",1,"Magnetic Field Generator",1,"Manufacturer",55,{"$f":"COUNTIF(Alt!C:C,A186)","v":1}]
["Magnetic Field Generator","Battery",5,"Magnetic Field Generator",1,"Manufacturer",55,{"$f":"COUNTIF(Alt!C:C,A187)","v":1}]
["Modular Engine","Motor",2,"Modular Engine",1,"Manufacturer",55,{"$f":"COUNTIF(Alt!C:C,A188)","v":1}]
["Modular Engine","Rubber",15,"Modular Engine",1,"Manufacturer",55,{"$f":"COUNTIF(Alt!C:C,A189)","v":1}]
["Modular Engine","Smart Plating",2,"Modular Engine",1,"Manufacturer",55,{"$f":"COUNTIF(Alt!C:C,A190)","v":1}]
["Modular Frame","Reinforced Iron Plate",3,"Modular Frame",2,"Assembler",15,{"$f":"COUNTIF(Alt!C:C,A191)","v":1}]
["Modular Frame","Iron Rod",12,"Modular Frame",2,"Assembler",15,{"$f":"COUNTIF(Alt!C:C,A192)","v":1}]
["Bolted Frame","Reinforced Iron Plate",7.5,"Modular Frame",5,"Assembler",15,{"$f":"COUNTIF(Alt!C:C,A193)","v":0}]
["Bolted Frame","Screw",140,"Modular Frame",5,"Assembler",15,{"$f":"COUNTIF(Alt!C:C,A194)","v":0}]
["Steeled Frame","Reinforced Iron Plate",2,"Modular Frame",3,"Assembler",15,{"$f":"COUNTIF(Alt!C:C,A195)","v":0}]
["Steeled Frame","Steel Pipe",10,"Modular Frame",3,"Assembler",15,{"$f":"COUNTIF(Alt!C:C,A196)","v":0}]
["Rigour Motor","Rotor",3.75,"Motor",7.5,"Manufacturer",55,{"$f":"COUNTIF(Alt!C:C,A197)","v":1}]
["Rigour Motor","Stator",3.75,"Motor",7.5,"Manufacturer",55,{"$f":"COUNTIF(Alt!C:C,A198)","v":1}]
["Rigour Motor","Crystal Oscillator",1.25,"Motor",7.5,"Manufacturer",55,{"$f":"COUNTIF(Alt!C:C,A199)","v":1}]
["Motor","Rotor",10,"Motor",5,"Assembler",15,{"$f":"COUNTIF(Alt!C:C,A200)","v":0}]
["Motor","Stator",10,"Motor",5,"Assembler",15,{"$f":"COUNTIF(Alt!C:C,A201)","v":0}]
["Electric Motor","Electromagnetic Control Rod",3.75,"Motor",7.5,"Assembler",15,{"$f":"COUNTIF(Alt!C:C,A202)","v":0}]
["Electric Motor","Rotor",7.5,"Motor",7.5,"Assembler",15,{"$f":"COUNTIF(Alt!C:C,A203)","v":0}]
["Nitric Acid","Nitrogen Gas",120,"Nitric Acid",30,"Blender",75,{"$f":"COUNTIF(Alt!C:C,A204)","v":1}]
["Nitric Acid","Water",30,"Nitric Acid",30,"Blender",75,{"$f":"COUNTIF(Alt!C:C,A205)","v":1}]
["Nitric Acid","Iron Plate",10,"Nitric Acid",30,"Blender",75,{"$f":"COUNTIF(Alt!C:C,A206)","v":1}]
["Nobelisk","Steel Pipe",20,"Nobelisk",10,"Assembler",15,{"$f":"COUNTIF(Alt!C:C,A207)","v":1}]
["Nobelisk","Black Powder",20,"Nobelisk",10,"Assembler",15,{"$f":"COUNTIF(Alt!C:C,A208)","v":1}]
["Seismic Nobelisk","Black Powder",12,"Nobelisk",6,"Manufacturer",55,{"$f":"COUNTIF(Alt!C:C,A209)","v":0}]
["Seismic Nobelisk","Steel Pipe",12,"Nobelisk",6,"Manufacturer",55,{"$f":"COUNTIF(Alt!C:C,A210)","v":0}]
["Seismic Nobelisk","Crystal Oscillator",1.5,"Nobelisk",6,"Manufacturer",55,{"$f":"COUNTIF(Alt!C:C,A211)","v":0}]
["Non-fissile Uranium","Uranium Waste",37.5,"Non-fissile Uranium",50,"Blender",75,{"$f":"COUNTIF(Alt!C:C,A212)","v":1}]
["Non-fissile Uranium","Silica",25,"Non-fissile Uranium",50,"Blender",75,{"$f":"COUNTIF(Alt!C:C,A213)","v":1}]
["Non-fissile Uranium","Nitric Acid",15,"Non-fissile Uranium",50,"Blender",75,{"$f":"COUNTIF(Alt!C:C,A214)","v":1}]
["Non-fissile Uranium","Sulfuric Acid",15,"Non-fissile Uranium",50,"Blender",75,{"$f":"COUNTIF(Alt!C:C,A215)","v":1}]
["Fertile Uranium","Uranium",25,"Non-fissile Uranium",100,"Blender",75,{"$f":"COUNTIF(Alt!C:C,A216)","v":0}]
["Fertile Uranium","Uranium Waste",25,"Non-fissile Uranium",100,"Blender",75,{"$f":"COUNTIF(Alt!C:C,A217)","v":0}]
["Fertile Uranium","Nitric Acid",15,"Non-fissile Uranium",100,"Blender",75,{"$f":"COUNTIF(Alt!C:C,A218)","v":0}]
["Fertile Uranium","Sulfuric Acid",25,"Non-fissile Uranium",100,"Blender",75,{"$f":"COUNTIF(Alt!C:C,A219)","v":0}]
["Nuclear Pasta","Copper Powder",100,"Nuclear Pasta",0.5,"Particle Accelerator",1000,{"$f":"COUNTIF(Alt!C:C,A220)","v":0}]
["Nuclear Pasta","Pressure Conversion Cube",0.5,"Nuclear Pasta",0.5,"Particle Accelerator",1000,{"$f":"COUNTIF(Alt!C:C,A221)","v":0}]
["Nuke Nobelisk","Nobelisk",2.5,"Nuke Nobelisk",0.5,"Manufacturer",55,{"$f":"COUNTIF(Alt!C:C,A222)","v":1}]
["Nuke Nobelisk","Encased Uranium Cell",10,"Nuke Nobelisk",0.5,"Manufacturer",55,{"$f":"COUNTIF(Alt!C:C,A223)","v":1}]
["Nuke Nobelisk","Smokeless Powder",5,"Nuke Nobelisk",0.5,"Manufacturer",55,{"$f":"COUNTIF(Alt!C:C,A224)","v":1}]
["Nuke Nobelisk","AI Limiter",3,"Nuke Nobelisk",0.5,"Manufacturer",55,{"$f":"COUNTIF(Alt!C:C,A225)","v":1}]
["Diluted Packaged Fuel","Heavy Oil Residue",30,"Packaged Fuel",60,"Refinery",60,{"$f":"COUNTIF(Alt!C:C,A226)","v":1}]
["Diluted Packaged Fuel","Packaged Water",60,"Packaged Fuel",60,"Refinery",60,{"$f":"COUNTIF(Alt!C:C,A227)","v":1}]
["Petroleum Coke","Heavy Oil Residue",40,"Petroleum Coke",120,"Refinery",60,{"$f":"COUNTIF(Alt!C:C,A228)","v":1}]
["Plutonium Fuel Unit","Encased Plutonium Cell",10,"Plutonium Fuel Rod",0.5,"Assembler",15,{"$f":"COUNTIF(Alt!C:C,A229)","v":1}]
["Plutonium Fuel Unit","Pressure Conversion Cube",0.5,"Plutonium Fuel Rod",0.5,"Assembler",15,{"$f":"COUNTIF(Alt!C:C,A230)","v":1}]
["Plutonium Fuel Rod","Encased Plutonium Cell",7.5,"Plutonium Fuel Rod",0.25,"Manufacturer",55,{"$f":"COUNTIF(Alt!C:C,A231)","v":0}]
["Plutonium Fuel Rod","Steel Beam",4.5,"Plutonium Fuel Rod",0.25,"Manufacturer",55,{"$f":"COUNTIF(Alt!C:C,A232)","v":0}]
["Plutonium Fuel Rod","Electromagnetic Control Rod",1.5,"Plutonium Fuel Rod",0.25,"Manufacturer",55,{"$f":"COUNTIF(Alt!C:C,A233)","v":0}]
["Plutonium Fuel Rod","Heat Sink",2.5,"Plutonium Fuel Rod",0.25,"Manufacturer",55,{"$f":"COUNTIF(Alt!C:C,A234)","v":0}]
["Plutonium Pellet","Non-fissile Uranium",100,"Plutonium Pellet",30,"Particle Accelerator",1000,{"$f":"COUNTIF(Alt!C:C,A235)","v":1}]
["Plutonium Pellet","Uranium Waste",25,"Plutonium Pellet",30,"Particle Accelerator",1000,{"$f":"COUNTIF(Alt!C:C,A236)","v":1}]
["Pressure Conversion Cube","Fused Modular Frame",1,"Pressure Conversion Cube",1,"Assembler",15,{"$f":"COUNTIF(Alt!C:C,A237)","v":1}]
["Pressure Conversion Cube","Radio Control Unit",1,"Pressure Conversion Cube",1,"Assembler",15,{"$f":"COUNTIF(Alt!C:C,A238)","v":1}]
["Pulse Nobelisk","Nobelisk",5,"Pulse Nobelisk",5,"Assembler",15,{"$f":"COUNTIF(Alt!C:C,A239)","v":1}]
["Pulse Nobelisk","Crystal Oscillator",1,"Pulse Nobelisk",5,"Assembler",15,{"$f":"COUNTIF(Alt!C:C,A240)","v":1}]
["Pure Quartz Crystal","Raw Quartz",67.5,"Quartz Crystal",52.5,"Refinery",30,{"$f":"COUNTIF(Alt!C:C,A241)","v":1}]
["Pure Quartz Crystal","Water",37.5,"Quartz Crystal",52.5,"Refinery",30,{"$f":"COUNTIF(Alt!C:C,A242)","v":1}]
["Quartz Crystal","Raw Quartz",37.5,"Quartz Crystal",22.5,"Constructor",4,{"$f":"COUNTIF(Alt!C:C,A243)","v":0}]
["Fused Quickwire","Caterium Ingot",7.5,"Quickwire",90,"Assembler",15,{"$f":"COUNTIF(Alt!C:C,A244)","v":1}]
["Fused Quickwire","Copper Ingot",37.5,"Quickwire",90,"Assembler",15,{"$f":"COUNTIF(Alt!C:C,A245)","v":1}]
["Quickwire","Caterium Ingot",12,"Quickwire",60,"Constructor",4,{"$f":"COUNTIF(Alt!C:C,A246)","v":0}]
["Radio Control System","Crystal Oscillator",1.5,"Radio Control Unit",4.5,"Manufacturer",55,{"$f":"COUNTIF(Alt!C:C,A247)","v":1}]
["Radio Control System","Circuit Board",15,"Radio Control Unit",4.5,"Manufacturer",55,{"$f":"COUNTIF(Alt!C:C,A248)","v":1}]
["Radio Control System","Aluminum Casing",90,"Radio Control Unit",4.5,"Manufacturer",55,{"$f":"COUNTIF(Alt!C:C,A249)","v":1}]
["Radio Control System","Rubber",45,"Radio Control Unit",4.5,"Manufacturer",55,{"$f":"COUNTIF(Alt!C:C,A250)","v":1}]
["Radio Connection Unit","Heat Sink",15,"Radio Control Unit",3.75,"Manufacturer",55,{"$f":"COUNTIF(Alt!C:C,A251)","v":0}]
["Radio Connection Unit","High-Speed Connector",7.5,"Radio Control Unit",3.75,"Manufacturer",55,{"$f":"COUNTIF(Alt!C:C,A252)","v":0}]
["Radio Connection Unit","Quartz Crystal",45,"Radio Control Unit",3.75,"Manufacturer",55,{"$f":"COUNTIF(Alt!C:C,A253)","v":0}]
["Radio Control Unit","Aluminum Casing",40,"Radio Control Unit",2.5,"Manufacturer",55,{"$f":"COUNTIF(Alt!C:C,A254)","v":0}]
["Radio Control Unit","Crystal Oscillator",1.25,"Radio Control Unit",2.5,"Manufacturer",55,{"$f":"COUNTIF(Alt!C:C,A255)","v":0}]
["Radio Control Unit","Computer",1.25,"Radio Control Unit",2.5,"Manufacturer",55,{"$f":"COUNTIF(Alt!C:C,A256)","v":0}]
["Stitched Iron Plate","Iron Plate",18.75,"Reinforced Iron Plate",5.625,"Assembler",15,{"$f":"COUNTIF(Alt!C:C,A257)","v":1}]
["Stitched Iron Plate","Wire",37.5,"Reinforced Iron Plate",5.625,"Assembler",15,{"$f":"COUNTIF(Alt!C:C,A258)","v":1}]
["Reinforced Iron Plate","Iron Plate",30,"Reinforced Iron Plate",5,"Assembler",15,{"$f":"COUNTIF(Alt!C:C,A259)","v":0}]
["Reinforced Iron Plate","Screw",60,"Reinforced Iron Plate",5,"Assembler",15,{"$f":"COUNTIF(Alt!C:C,A260)","v":0}]
["Adhered Iron Plate","Iron Plate",11.25,"Reinforced Iron Plate",3.75,"Assembler",15,{"$f":"COUNTIF(Alt!C:C,A261)","v":0}]
["Adhered Iron Plate","Rubber",3.75,"Reinforced Iron Plate",3.75,"Assembler",15,{"$f":"COUNTIF(Alt!C:C,A262)","v":0}]
["Bolted Iron Plate","Iron Plate",90,"Reinforced Iron Plate",15,"Assembler",15,{"$f":"COUNTIF(Alt!C:C,A263)","v":0}]
["Bolted Iron Plate","Screw",250,"Reinforced Iron Plate",15,"Assembler",15,{"$f":"COUNTIF(Alt!C:C,A264)","v":0}]
["Rifle Ammo","Copper Sheet",15,"Rifle Ammo",15,"Assembler",15]
["Rifle Ammo","Smokeless Powder",10,"Rifle Ammo",15,"Assembler",15]
["Steel Rotor","Steel Pipe",10,"Rotor",5,"Assembler",15,{"$f":"COUNTIF(Alt!C:C,A267)","v":1}]
["Steel Rotor","Wire",30,"Rotor",5,"Assembler",15,{"$f":"COUNTIF(Alt!C:C,A268)","v":1}]
["Rotor","Iron Rod",20,"Rotor",4,"Assembler",15,{"$f":"COUNTIF(Alt!C:C,A269)","v":0}]
["Rotor","Screw",100,"Rotor",4,"Assembler",15,{"$f":"COUNTIF(Alt!C:C,A270)","v":0}]
["Copper Rotor","Copper Sheet",22.5,"Rotor",11.2,"Assembler",15,{"$f":"COUNTIF(Alt!C:C,A271)","v":0}]
["Copper Rotor","Screw",195,"Rotor",11.2,"Assembler",15,{"$f":"COUNTIF(Alt!C:C,A272)","v":0}]
["Rubber","Crude Oil",30,"Rubber",20,"Refinery",30,{"$f":"COUNTIF(Alt!C:C,A273)","v":1}]
["Cast Screw","Iron Ingot",12.5,"Screw",50,"Constructor",4,{"$f":"COUNTIF(Alt!C:C,A274)","v":1}]
["Screw","Iron Rod",10,"Screw",40,"Constructor",4,{"$f":"COUNTIF(Alt!C:C,A275)","v":0}]
["Steel Screw","Steel Beam",5,"Screw",260,"Constructor",4,{"$f":"COUNTIF(Alt!C:C,A276)","v":0}]
["Shatter Rebar","Iron Rebar",10,"Shatter Rebar",5,"Assembler",15,{"$f":"COUNTIF(Alt!C:C,A277)","v":1}]
["Shatter Rebar","Quartz Crystal",15,"Shatter Rebar",5,"Assembler",15,{"$f":"COUNTIF(Alt!C:C,A278)","v":1}]
["Cheap Silica","Raw Quartz",11.25,"Silica",26.2,"Assembler",15,{"$f":"COUNTIF(Alt!C:C,A279)","v":1}]
["Cheap Silica","Limestone",18.75,"Silica",26.2,"Assembler",15,{"$f":"COUNTIF(Alt!C:C,A280)","v":1}]
["Silica","Raw Quartz",22.5,"Silica",37.5,"Constructor",4,{"$f":"COUNTIF(Alt!C:C,A281)","v":0}]
["Smart Plating","Reinforced Iron Plate",2,"Smart Plating",2,"Assembler",15,{"$f":"COUNTIF(Alt!C:C,A282)","v":1}]
["Smart Plating","Rotor",2,"Smart Plating",2,"Assembler",15,{"$f":"COUNTIF(Alt!C:C,A283)","v":1}]
["Plastic Smart Plating","Reinforced Iron Plate",2.5,"Smart Plating",5,"Manufacturer",55,{"$f":"COUNTIF(Alt!C:C,A284)","v":0}]
["Plastic Smart Plating","Rotor",2.5,"Smart Plating",5,"Manufacturer",55,{"$f":"COUNTIF(Alt!C:C,A285)","v":0}]
["Plastic Smart Plating","Plastic",7.5,"Smart Plating",5,"Manufacturer",55,{"$f":"COUNTIF(Alt!C:C,A286)","v":0}]
["Smokeless Powder","Black Powder",20,"Smokeless Powder",20,"Refinery",30,{"$f":"COUNTIF(Alt!C:C,A287)","v":1}]
["Smokeless Powder","Heavy Oil Residue",10,"Smokeless Powder",20,"Refinery",30,{"$f":"COUNTIF(Alt!C:C,A288)","v":1}]
["Stator","Steel Pipe",15,"Stator",5,"Assembler",15,{"$f":"COUNTIF(Alt!C:C,A289)","v":1}]
["Stator","Wire",40,"Stator",5,"Assembler",15,{"$f":"COUNTIF(Alt!C:C,A290)","v":1}]
["Quickwire Stator","Steel Pipe",16,"Stator",8,"Assembler",15,{"$f":"COUNTIF(Alt!C:C,A291)","v":0}]
["Quickwire Stator","Quickwire",60,"Stator",8,"Assembler",15,{"$f":"COUNTIF(Alt!C:C,A292)","v":0}]
["Steel Beam","Steel Ingot",60,"Steel Beam",15,"Constructor",4,{"$f":"COUNTIF(Alt!C:C,A293)","v":1}]
["Solid Steel Ingot","Iron Ingot",40,"Steel Ingot",60,"Foundry",16,{"$f":"COUNTIF(Alt!C:C,A294)","v":1}]
["Solid Steel Ingot","Coal",40,"Steel Ingot",60,"Foundry",16,{"$f":"COUNTIF(Alt!C:C,A295)","v":1}]
["Steel Ingot","Iron Ore",45,"Steel Ingot",45,"Foundry",16,{"$f":"COUNTIF(Alt!C:C,A296)","v":0}]
["Steel Ingot","Coal",45,"Steel Ingot",45,"Foundry",16,{"$f":"COUNTIF(Alt!C:C,A297)","v":0}]
["Compacted Steel Ingot","Iron Ore",22.5,"Steel Ingot",37.5,"Foundry",16,{"$f":"COUNTIF(Alt!C:C,A298)","v":0}]
["Compacted Steel Ingot","Compacted Coal",11.25,"Steel Ingot",37.5,"Foundry",16,{"$f":"COUNTIF(Alt!C:C,A299)","v":0}]
["Coke Steel Ingot","Iron Ore",75,"Steel Ingot",100,"Foundry",16,{"$f":"COUNTIF(Alt!C:C,A300)","v":0}]
["Coke Steel Ingot","Petroleum Coke",75,"Steel Ingot",100,"Foundry",16,{"$f":"COUNTIF(Alt!C:C,A301)","v":0}]
["Steel Pipe","Steel Ingot",30,"Steel Pipe",20,"Constructor",4,{"$f":"COUNTIF(Alt!C:C,A302)","v":1}]
["Stun Rebar","Iron Rebar",10,"Stun Rebar",10,"Assembler",15,{"$f":"COUNTIF(Alt!C:C,A303)","v":1}]
["Stun Rebar","Quickwire",50,"Stun Rebar",10,"Assembler",15,{"$f":"COUNTIF(Alt!C:C,A304)","v":1}]
["Sulfuric Acid","Sulfur",50,"Sulfuric Acid",50,"Refinery",30,{"$f":"COUNTIF(Alt!C:C,A305)","v":1}]
["Sulfuric Acid","Water",50,"Sulfuric Acid",50,"Refinery",30,{"$f":"COUNTIF(Alt!C:C,A306)","v":1}]
["Supercomputer","Computer",3.75,"Supercomputer",1.875,"Manufacturer",55,{"$f":"COUNTIF(Alt!C:C,A307)","v":1}]
["Supercomputer","AI Limiter",3.75,"Supercomputer",1.875,"Manufacturer",55,{"$f":"COUNTIF(Alt!C:C,A308)","v":1}]
["Supercomputer","High-Speed Connector",5.625,"Supercomputer",1.875,"Manufacturer",55,{"$f":"COUNTIF(Alt!C:C,A309)","v":1}]
["Supercomputer","Plastic",52.5,"Supercomputer",1.875,"Manufacturer",55,{"$f":"COUNTIF(Alt!C:C,A310)","v":1}]
["OC Supercomputer","Radio Control Unit",9,"Supercomputer",3,"Assembler",15,{"$f":"COUNTIF(Alt!C:C,A311)","v":0}]
["OC Supercomputer","Cooling System",9,"Supercomputer",3,"Assembler",15,{"$f":"COUNTIF(Alt!C:C,A312)","v":0}]
["Super-State Computer","Computer",3.6,"Supercomputer",2.4,"Manufacturer",55,{"$f":"COUNTIF(Alt!C:C,A313)","v":0}]
["Super-State Computer","Electromagnetic Control Rod",2.4,"Supercomputer",2.4,"Manufacturer",55,{"$f":"COUNTIF(Alt!C:C,A314)","v":0}]
["Super-State Computer","Battery",24,"Supercomputer",2.4,"Manufacturer",55,{"$f":"COUNTIF(Alt!C:C,A315)","v":0}]
["Super-State Computer","Wire",54,"Supercomputer",2.4,"Manufacturer",55,{"$f":"COUNTIF(Alt!C:C,A316)","v":0}]
["Thermal Propulsion Rocket","Modular Engine",2.5,"Thermal Propulsion Rocket",1,"Manufacturer",55,{"$f":"COUNTIF(Alt!C:C,A317)","v":1}]
["Thermal Propulsion Rocket","Turbo Motor",1,"Thermal Propulsion Rocket",1,"Manufacturer",55,{"$f":"COUNTIF(Alt!C:C,A318)","v":1}]
["Thermal Propulsion Rocket","Cooling System",3,"Thermal Propulsion Rocket",1,"Manufacturer",55,{"$f":"COUNTIF(Alt!C:C,A319)","v":1}]
["Thermal Propulsion Rocket","Fused Modular Frame",1,"Thermal Propulsion Rocket",1,"Manufacturer",55,{"$f":"COUNTIF(Alt!C:C,A320)","v":1}]
["Turbo Electric Motor","Motor",6.5625,"Turbo Motor",2.8125,"Manufacturer",55,{"$f":"COUNTIF(Alt!C:C,A321)","v":1}]
["Turbo Electric Motor","Radio Control Unit",8.4375,"Turbo Motor",2.8125,"Manufacturer",55,{"$f":"COUNTIF(Alt!C:C,A322)","v":1}]
["Turbo Electric Motor","Electromagnetic Control Rod",4.6875,"Turbo Motor",2.8125,"Manufacturer",55,{"$f":"COUNTIF(Alt!C:C,A323)","v":1}]
["Turbo Electric Motor","Rotor",6.5625,"Turbo Motor",2.8125,"Manufacturer",55,{"$f":"COUNTIF(Alt!C:C,A324)","v":1}]
["Turbo Motor","Cooling System",7.5,"Turbo Motor",1.875,"Manufacturer",55,{"$f":"COUNTIF(Alt!C:C,A325)","v":0}]
["Turbo Motor","Radio Control Unit",3.75,"Turbo Motor",1.875,"Manufacturer",55,{"$f":"COUNTIF(Alt!C:C,A326)","v":0}]
["Turbo Motor","Motor",7.5,"Turbo Motor",1.875,"Manufacturer",55,{"$f":"COUNTIF(Alt!C:C,A327)","v":0}]
["Turbo Motor","Rubber",45,"Turbo Motor",1.875,"Manufacturer",55,{"$f":"COUNTIF(Alt!C:C,A328)","v":0}]
["Turbo Pressure Motor","Motor",7.5,"Turbo Motor",3.75,"Manufacturer",55,{"$f":"COUNTIF(Alt!C:C,A329)","v":0}]
["Turbo Pressure Motor","Pressure Conversion Cube",1.875,"Turbo Motor",3.75,"Manufacturer",55,{"$f":"COUNTIF(Alt!C:C,A330)","v":0}]
["Turbo Pressure Motor","Packaged Nitrogen Gas",45,"Turbo Motor",3.75,"Manufacturer",55,{"$f":"COUNTIF(Alt!C:C,A331)","v":0}]
["Turbo Pressure Motor","Stator",15,"Turbo Motor",3.75,"Manufacturer",55,{"$f":"COUNTIF(Alt!C:C,A332)","v":0}]
["Turbo Rifle Ammo","Rifle Ammo",125,"Turbo Rifle Ammo",250,"Manufacturer",55]
["Turbo Rifle Ammo","Aluminum Casing",15,"Turbo Rifle Ammo",250,"Manufacturer",55]
["Turbo Rifle Ammo","Packaged Turbofuel",15,"Turbo Rifle Ammo",250,"Manufacturer",55]
["Turbo Rifle Ammo Blender","Rifle Ammo",125,"Turbo Rifle Ammo",250,"Blender",75]
["Turbo Rifle Ammo Blender","Aluminum Casing",15,"Turbo Rifle Ammo",250,"Blender",75]
["Turbo Rifle Ammo Blender","Turbofuel",15,"Turbo Rifle Ammo",250,"Blender",75]
["Turbofuel","Fuel",22.5,"Turbofuel",18.75,"Refinery",30,{"$f":"COUNTIF(Alt!C:C,A339)","v":1}]
["Turbofuel","Compacted Coal",15,"Turbofuel",18.75,"Refinery",30,{"$f":"COUNTIF(Alt!C:C,A340)","v":1}]
["Turbo Blend Fuel","Fuel",15,"Turbofuel",45,"Blender",75,{"$f":"COUNTIF(Alt!C:C,A341)","v":0}]
["Turbo Blend Fuel","Heavy Oil Residue",30,"Turbofuel",45,"Blender",75,{"$f":"COUNTIF(Alt!C:C,A342)","v":0}]
["Turbo Blend Fuel","Sulfur",22.5,"Turbofuel",45,"Blender",75,{"$f":"COUNTIF(Alt!C:C,A343)","v":0}]
["Turbo Blend Fuel","Petroleum Coke",22.5,"Turbofuel",45,"Blender",75,{"$f":"COUNTIF(Alt!C:C,A344)","v":0}]
["Turbo Heavy Fuel","Heavy Oil Residue",37.5,"Turbofuel",30,"Refinery",30,{"$f":"COUNTIF(Alt!C:C,A345)","v":0}]
["Turbo Heavy Fuel","Compacted Coal",30,"Turbofuel",30,"Refinery",30,{"$f":"COUNTIF(Alt!C:C,A346)","v":0}]
["Uranium Fuel Rod","Encased Uranium Cell",20,"Uranium Fuel Rod",0.4,"Manufacturer",55,{"$f":"COUNTIF(Alt!C:C,A347)","v":1}]
["Uranium Fuel Rod","Encased Industrial Beam",1.2,"Uranium Fuel Rod",0.4,"Manufacturer",55,{"$f":"COUNTIF(Alt!C:C,A348)","v":1}]
["Uranium Fuel Rod","Electromagnetic Control Rod",2,"Uranium Fuel Rod",0.4,"Manufacturer",55,{"$f":"COUNTIF(Alt!C:C,A349)","v":1}]
["Uranium Fuel Unit","Encased Uranium Cell",20,"Uranium Fuel Rod",0.6,"Manufacturer",55,{"$f":"COUNTIF(Alt!C:C,A350)","v":0}]
["Uranium Fuel Unit","Electromagnetic Control Rod",2,"Uranium Fuel Rod",0.6,"Manufacturer",55,{"$f":"COUNTIF(Alt!C:C,A351)","v":0}]
["Uranium Fuel Unit","Crystal Oscillator",0.6,"Uranium Fuel Rod",0.6,"Manufacturer",55,{"$f":"COUNTIF(Alt!C:C,A352)","v":0}]
["Uranium Fuel Unit","Beacon",1.2,"Uranium Fuel Rod",0.6,"Manufacturer",55,{"$f":"COUNTIF(Alt!C:C,A353)","v":0}]
["Uranium Waste","water",0.2,"Uranium Waste",10,"Nuclear Power Plant",-2500,{"$f":"COUNTIF(Alt!C:C,A354)","v":1}]
["Uranium Waste","Water",300,"Uranium Waste",10,"Nuclear Power Plant",-2500,{"$f":"COUNTIF(Alt!C:C,A355)","v":1}]
["Versatile Framework","Modular Frame",2.5,"Versatile Framework",5,"Assembler",15,{"$f":"COUNTIF(Alt!C:C,A356)","v":1}]
["Versatile Framework","Steel Beam",30,"Versatile Framework",5,"Assembler",15,{"$f":"COUNTIF(Alt!C:C,A357)","v":1}]
["Flexible Framework","Modular Frame",3.75,"Versatile Framework",7.5,"Manufacturer",55,{"$f":"COUNTIF(Alt!C:C,A358)","v":0}]
["Flexible Framework","Steel Beam",22.5,"Versatile Framework",7.5,"Manufacturer",55,{"$f":"COUNTIF(Alt!C:C,A359)","v":0}]
["Flexible Framework","Rubber",30,"Versatile Framework",7.5,"Manufacturer",55,{"$f":"COUNTIF(Alt!C:C,A360)","v":0}]
["Water","Ocean",120,"Water",120,"Water Extractor",20,{"$f":"COUNTIF(Alt!C:C,A361)","v":1}]
["Iron Wire","Iron Ingot",12.5,"Wire",22.5,"Constructor",4,{"$f":"COUNTIF(Alt!C:C,A362)","v":1}]
["Wire","Copper Ingot",15,"Wire",30,"Constructor",4,{"$f":"COUNTIF(Alt!C:C,A363)","v":0}]
["Caterium Wire","Caterium Ingot",15,"Wire",120,"Constructor",4,{"$f":"COUNTIF(Alt!C:C,A364)","v":0}]
["Fused Wire","Copper Ingot",12,"Wire",90,"Assembler",15,{"$f":"COUNTIF(Alt!C:C,A365)","v":0}]
["Fused Wire","Caterium Ingot",3,"Wire",90,"Assembler",15,{"$f":"COUNTIF(Alt!C:C,A366)","v":0}]

{"sheet":"Plastic vs HOR","index":6,"n_rows":45,"n_cols":10,"rows_kept":45,"merged":[[1,1,1,5],[3,1,4,1],[3,2,4,2],[3,3,4,3],[6,1,7,1],[6,2,7,2],[6,3,7,3],[9,1,10,1],[9,4,10,4],[9,5,10,5],[13,1,13,4]]}
[]
[null,"Recipes"]
[null,"RecipeName","InputName","InPPM","OutputName","OuPPM"]
[null,"Plastic","Crude Oil",30,"Plastic",20]
[{"$nulls":4},"Heavy",10]
[]
[null,"Heavy","Crude Oil",30,"Heavy",40]
[{"$nulls":4},"Resin",20]
[]
[null,"RP","PR",60,"Plastic",20]
[null,null,"Water",20]
[]
[]
[null,"Refineries"]
[null,"Number","Recipe","Plastic","Heavy"]
[null,1,{"$f":"IF(B16<=$H$16,\"Plastic\",IF(B16<=$H$16+$H$17,\"Heavy\",\"\"))","v":"Plastic"},{"$f":"IF(C16=\"Plastic\",20,IF(C16=\"Heavy\",6.6667,0))","v":20},{"$f":"IF(C16=\"Plastic\",10,IF(C16=\"Heavy\",40,0))","v":10},null,"Plastics",21]
[null,{"$f":"B16+1","v":2},{"$f":"IF(B17<=$H$16,\"Plastic\",IF(B17<=$H$16+$H$17,\"Heavy\",\"\"))","v":"Plastic"},{"$f":"IF(C17=\"Plastic\",20,IF(C17=\"Heavy\",6.6667,0))","v":20},{"$f":"IF(C17=\"Plastic\",10,IF(C17=\"Heavy\",40,0))","v":10},null,"Heavies",2,"← actually 1.5"]
[null,{"$f":"B17+1","v":3},"Plastic",20,10]
[null,4,"Plastic",20,10,null,"Name","Total","Goal"]
[null,5,"Plastic",20,10,null,"Plastic",{"$f":"SUM(D16:D45)","v":{"v":433.3334,"d":"433.3"}},427,{"$f":"H20-I20","v":{"v":6.333399999999983,"d":"6.3"}}]
[null,6,"Plastic",20,10,null,"Heavy",{"$f":"SUM(E16:E45)","v":290},270]
[null,7,"Plastic",20,10]
[null,8,"Plastic",20,10]
[null,9,"Plastic",20,10]
[null,10,"Plastic",20,10]
[null,11,"Plastic",{"$f":"IF(C26=\"Plastic\",20,IF(C26=\"Heavy\",6.6667,0))","v":20},{"$f":"IF(C26=\"Plastic\",10,IF(C26=\"Heavy\",40,0))","v":10}]
[null,12,"Plastic",20,10]
[null,13,"Plastic",20,10]
[null,14,"Plastic",20,10]
[null,15,"Plastic",20,10]
[null,16,"Plastic",20,10]
[null,17,"Plastic",20,10]
[null,18,"Plastic",20,10]
[null,19,"Plastic",20,10]
[null,20,"Plastic",20,10]
[null,21,"Plastic",20,10]
[null,22,"Heavy",6.6667,40]
[null,23,"Heavy",6.6667,40]
[null,24,"",0,0]
[null,25,"",0,0]
[null,26,"",0,0]
[null,27,"",0,0]
[null,28,"",0,0]
[null,29,"",0,0]
[null,30,"",0,0]

{"sheet":"PlutNotes","index":7,"n_rows":41,"n_cols":13,"rows_kept":41,"merged":[[0,0,0,2]]}
["Plutonium Fuel Rod Production Notes"]
[]
[{"$nulls":10},"Uranium",25,1]
[{"$nulls":10},"Encased Cell",20,{"$f":"L4/L3","v":0.8}]
[]
["Desired Fuel Rods",2,"per minute",null,{"$f":"B6/0.5","v":4},"Assemblers",null,"PCC",null,null,"Cell",100]
[{"$nulls":10},"Fuel Rod",3,{"$f":"L7/L6","v":0.03}]
[{"$nulls":12},{"$f":"M7*M4","v":0.024}]
["Encased Plutonium Cells",{"$f":"B6/0.5*10","v":40},"per minute",null,{"$f":"B9/10","v":4},"Particle Accelerators",{"$nulls":4},"Fuel Rod",1]
["Non-fissile Uranium",{"$f":"B6/0.5*75","v":300},"per minute",null,{"$f":"B10/100","v":3},"Blenders",{"$nulls":4},"Waste",50,{"$f":"L10/L9","v":50}]
["Aluminum Casing",{"$f":"B6/0.5*10","v":40},"per minute",null,{"$f":"B11/60","v":0.6666666666666666},"Constructors",{"$nulls":6},{"$f":"M8*M10","v":1.2}]
[]
["Uranium",{"$f":"B10/100*25","v":75},"per minute"]
["Uranium Waste",{"$f":"B10/100*25","v":75},"per minute",null,{"$f":"B14/10","v":7.5},"Nuclear Power Plants"]
["Nitric Acid",{"$f":"B10/100*15","v":45},"per minute",null,{"$f":"B15/30","v":1.5},"Blenders"]
["Sulfuric Acid",{"$f":"B10/100*25","v":75},"per minute",null,{"$f":"B16/50","v":1.5},"Refineries"]
[]
["Uranium Fuel Rod",{"$f":"B14/10*0.2","v":1.5},"per minute",null,{"$f":"B18/0.6","v":2.5},"Manufacturers"]
["Encased Uranium Cell",{"$f":"E18*20","v":50}]
["ECR",{"$f":"E18*2","v":5}]
["Crystal Oscillator",{"$f":"E18*0.6","v":1.5}]
["Beacon",{"$f":"E18*1.2","v":3}]
[]
["Nitrogen Gas",{"$f":"E15*120","v":180},"per minute"]
["Water",{"$f":"30*E15","v":45},"per minute"]
["Iron Plate",{"$f":"10*E15","v":15},"per minute"]
[]
[]
[]
[]
["Pressure Conversion Cube",{"$f":"B6","v":2},"per minute",null,{"$f":"B31/1","v":2},"Assumbers"]
["Radio Control Unit",2,"per minute"]
[]
[]
["Aluminum Ingots",{"$f":"B11/60*90","v":60},"per minute",null,{"$f":"B35/30","v":2},"Smelters"]
["Aluminum Scrap",{"$f":"B35/30*60","v":120},"per minute",null,{"$f":"B36/300","v":{"v":0.4,"d":"0.40"}},"Refineries"]
[]
["Alumina Solution",{"$f":"B36/300*180","v":72},"per minute",null,{"$f":"B38/240","v":{"v":0.3,"d":"0.30"}},"Refineries"]
["Petrolium Coke",{"$f":"B36/300*60","v":24},"per minute"]
[]
["Bauxite",{"$f":"B38/240*200","v":60}]

{"sheet":"Mall Layout","index":8,"n_rows":15,"n_cols":5,"rows_kept":15,"merged":[[4,0,8,0],[10,0,14,0]]}
[]
[]
[null,"First 10 Items","Next 10","3rd 10","Last 10"]
[]
["Top","Reinforced Iron Plate","Motor","Bullets","Alclad Aluminum Sheet"]
[null,"Cable","Heavy Modular Frame","Iodine Filters","Fused Modular Frame"]
[null,"Rotor","Plastic","Inhalers","Supercomputer"]
[null,"Copper Sheet","High Speed Connector"]
[null,"Steel Pipe","Quartz Crystal",null,"Turbo Motor"]
[]
["Bottom","Iron plate","Encased Industrial Beam","Nobelisk","Aluminum Casing"]
[null,"Wire","Modular Frame","Gas Filters","Radio Control Unit"]
[null,"Iron Rod","Rubber","Fuel","Computer"]
[null,"Concrete","Quickwire"]
[null,"Steel Beam","AI Limiter",null,"Cooling System"]

{"sheet":"HMF Layout","index":9,"n_rows":22,"n_cols":2,"rows_kept":22}
["Layout of Heavy Modular Frame Factory"]
[]
["Lower Level","Count"]
["Compacted Coal Assemblers",4]
["Steel Foundries",8]
["Iron Smelters",10]
["Concrete Constructors (maybe)",5]
["Total Machines",{"$f":"SUM(B4:B7)","v":27}]
[]
["Second Level"]
["Wire Constructors",5]
["Plate Constructors",3]
["Screw Constructors",11]
["Steel Pipe Constructors",10]
["Total Machines",{"$f":"SUM(B11:B14)","v":29}]
[]
["Third Level"]
["RIP Assemblers",3]
["EIB Assemblers",4]
["Modular Frame Assemblers",9]
["HMF Manufacturers",2]
["Total Machines",{"$f":"SUM(B18:B21)","v":18}]

{"sheet":"Turbo Comp","index":10,"n_rows":13,"n_cols":7,"rows_kept":13}
["Original Recipe"]
[]
["Recipe","Building","Power","Input Name","Input PPM","Output Name","Output PPM"]
["Heavy Oil Residue","Refinery",30,null,null,{"$f":"A4","v":"Heavy Oil Residue"},40]
[]
["Water","Water Extractor",20,null,null,{"$f":"A6","v":"Water"},120]
[]
["Packaged Water","Packager",10,"Water",60,{"$f":"A8","v":"Packaged Water"},60]
[]
["Diluted Packaged Fuel","Refinery",30,"HOR",30,{"$f":"A10","v":"Diluted Packaged Fuel"},60]
[{"$nulls":3},"Water",60,"↑"]
[]
["Turbo Fuel","Refinery",30,"Fuel",22.5]

{"sheet":"HOR Fuel","index":11,"n_rows":30,"n_cols":5,"rows_kept":30}
[]
[null,"Oil:",600]
[]
[]
[null,"HOR Alt Recipe:"]
[null,"30pm oil to 40pm HOR",null,null,"Power Needed"]
[]
[null,"Refineries",{"$f":"C2/30","v":20},null,{"$f":"30*C8","v":600}]
[]
[null,"HOR made",{"$f":"C8*40","v":800}]
[]
[null,"Water",{"$f":"C10*2","v":1600}]
[]
[null,"Extractors",{"$f":"C12/120","v":13.333333333333334},null,{"$f":"C14*20","v":{"v":266.6666666666667,"d":"267"}}]
[]
[null,"Packagers",{"$f":"C12/60","v":26.666666666666668},null,{"$f":"C16*10","v":{"v":266.6666666666667,"d":"267"}}]
[]
[]
[null,"Diluted Packaged Fuel:"]
[null,"30pm HOR + 60pm Water Pack = 60pm Fuel"]
[]
[null,"Refineries",{"$f":"C10/30","v":26.666666666666668},null,{"$f":"30*C22","v":800}]
[]
[null,"Fuel Made",{"$f":"C22*60","v":1600}]
[]
[null,"Unpackagers",{"$f":"C24/60","v":26.666666666666668},null,{"$f":"C26*10","v":{"v":266.6666666666667,"d":"267"}}]
[]
[null,"Fuel Generators",{"$f":"C24/12","v":133.33333333333334}]
[]
[null,"Power",{"$f":"C28*150","v":{"v":20000,"d":"20,000"}}]